Cogmind - Beta 15 @@@ ROGUE MODE // 2025.09.14 @ 18:46:28 Player: cottonman132 Result: Destroyed by D-53 Grenadier with Mini Grenade Launcher Performance ------------- Evolutions (0) 0 Regions Visited (2) 400 Robots Destroyed (17) 85 Value Destroyed (207) 207 Prototype IDs (1) 20 Alien Tech Used (0) 0 Bonus (0) 0 TOTAL SCORE: 712 Bonus ------- None Cogmind --------- Core Integrity 0/250 Matter 298/300 Energy 100/100 System Corruption 0% Temperature Cool (0) Movement Rolling (100) Location -10/Mines Parts ------- > --- POWER (1) -------- (None) > --- PROPULSION (2) --- Compact Wheel > --- UTILITY (2) ------ Medium Storage Unit > --- WEAPON (2) ------- Heavy Hammer > --- INVENTORY (10) --- Light Nuclear Core Large Matter Pod (150) Terrain Scan Processor Seismic Detector Core Shielding Heavy Hammer Heavy Hammer Peak State ------------ > --- POWER ------------ Improved Ion Engine > --- PROPULSION ------- Aluminum Leg Aluminum Leg > --- UTILITY ---------- Medium Storage Unit Seismic Detector > --- WEAPON ----------- Heavy Hammer Heavy Hammer > --- INVENTORY -------- Improved Ion Engine Light Nuclear Core Compact Wheel Compact Wheel Large Matter Pod Experimental Sensor Array Terrain Scan Processor Core Shielding Heavy Hammer Heavy Hammer [Rating: 12] Favorites ----------- Power Light Ion Engine Engine Light Ion Engine Propulsion Aluminum Leg Leg Aluminum Leg Wheel Compact Wheel Utility Medium Storage Unit Device Seismic Detector Storage Medium Storage Unit Weapon Heavy Hammer Impact Weapon Heavy Hammer Build | -11 -10 -10 ------- Run | Yrd Mat Min Slots Evolved . | . . . Power . | . . . Propulsion . | . . . Utility . | . . . Weapon . | . . . Parts Attached 12 | 6 4 2 Power 3 | 1 . 2 Engine 3 | 1 . 2 Core . | . . . Reactor . | . . . Propulsion 4 | 4 . . Treads . | . . . Leg 2 | 2 . . Wheel 2 | 2 . . Hover . | . . . Flight . | . . . Utility 3 | 1 2 . Device 1 | . 1 . Storage 2 | 1 1 . Processor . | . . . Hackware . | . . . Protection . | . . . Artifact . | . . . Weapon 2 | . 2 . Energy Gun . | . . . Energy Cannon . | . . . Ballistic Gun . | . . . Ballistic Cannon . | . . . Launcher . | . . . Special Weapon . | . . . Impact Weapon 2 | . 2 . Slashing Weapon . | . . . Piercing Weapon . | . . . Special Melee Weapon . | . . . Unidentified Prototypes 1 | . . 1 Parts Lost 6 | . . 6 Power 1 | . . 1 Propulsion 2 | . . 2 Utility 2 | . . 2 Weapon 1 | . . 1 Highest Loss Streak 5 | . . 5 To Critical Strikes . | . . . Average Backups 6 | 4 6 8 Power 1 | 1 1 1 Propulsion 1 | 1 2 1 Utility 1 | . . 2 Weapon 2 | 2 2 2 Tool/Special . | . . . Unused Backups 12 | . 5 7 Power 2 | . 1 1 Propulsion . | . . . Utility 5 | . 1 4 Weapon 5 | . 3 2 Tool/Special . | . . . Average Slot Usage (%) 92 | . 82 99 Engine 14 | . 14 14 Leg 22 | . 14 27 Wheel 5 | . 13 . Device 12 | . 9 13 Storage 14 | . 14 14 Impact Weapon 23 | . 15 28 Peak Build Rating 12 | 4 10 12 Average Rating 7 | 3 7 10 On Entrance 4 | . 4 10 Naked Turns . | . . . Heaviest Build 24 | 8 20 24 Greatest Support 32 | 32 32 32 Greatest Overweight (x) 2 | 2 . 2 Average Overweight (x) . | . . . Largest Inventory Capacity 10 | 8 10 10 Average Capacity 9 | 7 9 10 Most Carried 10 | 6 9 10 Average Carried 6 | 4 6 8 Final Capacity 10 | 8 10 10 Final Carried 8 | 6 8 7 Class Distribution -------------------- 100% | Mutant Dominant Class ---------------- Mutant | -10/Materials Mutant | -10/Mines Resources | -11 -10 -10 ----------- Run | Yrd Mat Min Matter Collected 462 | 219 . 243 Remotely . | . . . Salvage Created 382 | . 17 365 Parts 12 | . . 12 Haulers Intercepted . | . . . Recyclers Shooed . | . . . Parts Field Recycled . | . . . Retrieved Matter . | . . . Parts Self-Destructed . | . . . Prevented . | . . . Kills | -11 -10 -10 ------- Run | Yrd Mat Min Combat Hostiles Destroyed 5 | . . 5 Melee 3 | . . 3 Classes Destroyed 7 | 1 1 5 Worker 3 | . . 3 Builder 3 | . . 3 Tunneler 2 | . . 2 Recycler 3 | 1 . 2 Watcher 1 | . 1 . Swarmer 3 | . . 3 Grunt 2 | . . 2 Best Kill Streak 2 | 1 1 2 Combat Bots Only 2 | . . 2 Max Kills in Single Turn 1 | 1 1 1 Gunslinging . | . . . Exploded . | . . . Melee 1 | . . 1 Uniques/NPCs Destroyed . | . . . Combat | -11 -10 -10 -------- Run | Yrd Mat Min Hostile Shots Fired 40 | . . 40 Missed 8 | . . 8 Hits 32 | . . 32 Projectile 32 | . . 32 AOE 12 | . . 12 Part Disruptions 1 | . . 1 Damage Taken 761 | . 2 759 Core 255 | . . 255 Absorbed by Shields . | . . . Core Remaining (%) 100 | 100 . . Volleys Fired . | . . . Largest . | . . . Hottest . | . . . Shots Fired . | . . . Gun . | . . . Cannon . | . . . Launcher . | . . . Special . | . . . Kinetic . | . . . Thermal . | . . . Explosive . | . . . Electromagnetic . | . . . Robot Hit Streak . | . . . Robot Miss Streak . | . . . Penetration Max . | . . . Secondary Targets . | . . . Shots Hit Robots 21 | . 1 20 Core Hits 11 | 8 . 3 Critical Kills . | . . . Critical Parts Destroyed 4 | . . 4 Critical Strikes 4 | . . 4 Smash 4 | . . 4 Melee Attacks 38 | . 3 35 Impact 38 | . 3 35 Slashing . | . . . Piercing . | . . . Sneak Attacks 12 | . . 12 Combat Hostiles . | . . . Follow-up Attacks 2 | . . 2 Damage Inflicted 1583 | 76 38 1469 Guns . | . . . Cannons . | . . . Explosions . | . . . Melee 1503 | . 34 1469 Ramming 80 | 76 4 . Kinetic . | . . . Thermal . | . . . Explosive . | . . . Electromagnetic . | . . . Impact 1503 | . 34 1469 Slashing . | . . . Piercing . | . . . Highest Corruption . | . . . Average Corruption . | . . . Corruption Purged . | . . . Corruption Blocked . | . . . Overload Shots . | . . . Overflow Damage 874 | . 4 870 Projectiles . | . . . Explosions . | . . . Melee 874 | . 4 870 Knockbacks 4 | . 1 3 Impact 4 | . 1 3 Kinetic . | . . . Secondary . | . . . Self-Inflicted Damage 2 | . 2 . Shots . | . . . Rammed 1 | . 1 . Targets Rammed 47 | 46 1 . Kicked 46 | 46 . . Crushed . | . . . Highest Temperature 3 | . . 3 Average Temperature 2 | . . 2 Received Heat Transfer 94 | . . 94 Siege Activations . | . . . Martial Activations . | . . . Shielding Activations . | . . . Robots Disrupted . | . . . Combat Hostiles . | . . . Robots Corrupted 7 | . 1 6 Combat Hostiles 2 | . . 2 Parts Fried 12 | . 1 11 Impact Corruptions 26 | . 1 25 Robots Melted . | . . . Combat Hostiles . | . . . Parts Melted . | . . . Heat Transferred . | . . . Parts Sabotaged . | . . . Parts Stolen . | . . . Parts Stripped . | . . . Power Chain Reactions . | . . . Alert | -11 -10 -10 ------- Run | Yrd Mat Min Maximum Alert Level . | . . . Low Security (%) 100 | 100 100 100 Level 1 . | . . . Level 2 . | . . . Level 3 . | . . . Level 4 . | . . . Level 5 . | . . . High Security . | . . . Max Security . | . . . Peak Influence 68 | 5 15 68 Initial . | . . . Average 9 | . . 23 Influence Increases 278 | 5 28 245 Destroy 0b10 Robot/C 100 | . . 100 Destroy 0b10 Robot/NC 60 | 5 5 50 Destroy Leader 22 | . 2 20 Successful Hack 6 | . 6 . Disable Machine 45 | . . 45 Lose Combat Pursuer 45 | . 15 30 Influence Decreases 278 | 5 28 245 Time Decay 239 | 5 28 206 Lost Part 39 | . . 39 Squads Dispatched . | . . . Investigation . | . . . Extermination . | . . . Reinforcement . | . . . Assault . | . . . Garrison . | . . . Intercept . | . . . Searches Triggered . | . . . Construction Impeded . | . . . Haulers Reinforced . | . . . Active Scanning Responses . | . . . Cargo Convoy Interrupts . | . . . Stealth | -11 -10 -10 --------- Run | Yrd Mat Min Distress Signals 1 | . 1 . Communications Jammed . | . . . Distress Signals . | . . . Times Spotted 18 | . 4 14 Peak Tracking Total 19 | . 2 19 Tactical Retreats 3 | . 1 2 Traps | -11 -10 -10 ------- Run | Yrd Mat Min Traps Triggered . | . . . Indirectly . | . . . Trap Hack Attempts . | . . . Triggered . | . . . Disarmed . | . . . Reprogrammed . | . . . Reused . | . . . Traps Extracted . | . . . Installed . | . . . Triggered . | . . . Machines | -11 -10 -10 ---------- Run | Yrd Mat Min Machines Disabled 3 | . . 3 Max in Single Turn 1 | . . 1 Machines Repaired . | . . . Machines Dismantled . | . . . Machines Sabotaged . | . . . Overloaded Fab Kills . | . . . Hacking | -11 -10 -10 --------- Run | Yrd Mat Min Machines Accessed 2 | . 2 . Terminals 2 | . 2 . Fabricators . | . . . Repair Stations . | . . . Recycling Units . | . . . Scanalyzers . | . . . Garrison Access . | . . . Total Hacks 7 | . 7 . Successful 2 | . 2 . Failed 5 | . 5 . Catastrophic . | . . . Database Lockouts . | . . . Manual 2 | . 2 . Terminals 7 | . 7 . Fabricators . | . . . Repair Stations . | . . . Recycling Units . | . . . Scanalyzers . | . . . Garrison Access . | . . . Terminal Hacks 2 | . 2 . Robot Analysis 1 | . 1 . Locate Traps 1 | . 1 . Fabricator Hacks . | . . . Repair Station Hacks . | . . . Recycling Unit Hacks . | . . . Scanalyzer . | . . . Garrison Access Hacks . | . . . Unauthorized Hacks . | . . . Terminals . | . . . Fabricators . | . . . Repair Stations . | . . . Recycling Units . | . . . Scanalyzers . | . . . Garrison Access . | . . . Data Cores Recovered . | . . . Used . | . . . Hacking Detections 2 | . 2 . Full Trace Events 2 | . 2 . Feedback Events . | . . . Feedback Blocked . | . . . Robot Schematics Acquired . | . . . Robots Built . | . . . Authchips . | . . . Time . | . . . Total Robot Build Rating . | . . . Part Schematics Acquired . | . . . Parts Built . | . . . Authchips . | . . . Time . | . . . Total Part Build Rating . | . . . Parts Repaired . | . . . Time . | . . . Parts Recycled . | . . . Recycled Matter . | . . . Retrieved Matter . | . . . Retrieved Components . | . . . Parts Scanalyzed . | . . . Part Schematics Acquired . | . . . Parts Damaged . | . . . Bothacking | -11 -10 -10 ------------ Run | Yrd Mat Min Used RIF Installer . | . . . Robots Hacked . | . . . Non-combat . | . . . Combat . | . . . Robot Hacks Applied . | . . . Relay Couplers Released . | . . . Fabnet Peak Effective % . | . . . Robots Rewired . | . . . Allies Hacked . | . . . Hacks Repelled . | . . . Allies | -11 -10 -10 -------- Run | Yrd Mat Min Total Allies . | . . . Largest Group . | . . . Highest-Rated Group . | . . . Highest-Rated Ally . | . . . Total Orders . | . . . Ally Attacks . | . . . Total Damage . | . . . Kills . | . . . Allies Corrupted . | . . . Allies Melted . | . . . Intel | -11 -10 -10 ------- Run | Yrd Mat Min Active Infowar (turns) 971 | . 309 662 Seismic 971 | . 309 662 Robot Analysis Total 1 | . 1 . Derelict Logs Recovered 1 | . . 1 Drone Launches . | . . . Drone Recoveries . | . . . Exploration | -11 -10 -10 ------------- Run | Yrd Mat Min Turns Passed 1706 | 589 442 675 Spaces Moved 1121 | 437 374 310 Core 6 | 6 . . Treads . | . . . Legs 885 | 390 191 304 Wheels 230 | 41 183 6 Hover . | . . . Flight . | . . . Fastest Speed 50 | 50 100 100 Average Speed 133 | 117 110 184 Slowest Speed 260 | 150 120 260 Overloaded Moves . | . . . Propulsion Burnouts . | . . . Robots Hopped . | . . . Potential Cave-ins . | . . . Cave-ins Triggered . | . . . Exploration Rate (%) 44 | 19 42 73 Regions Visited 2 Branch Regions 1 Pre-discovered Areas . | . . . Known Exits Taken . | . . . Unknown Exits Taken 2 | 1 1 . Scrap Searched . | . . . Spaces Dug . | . . . Terrain Destroyed . | . . . Melee . | . . . Projectile . | . . . AOE . | . . . Terrain Rammed . | . . . Walls Destroyed . | . . . Machines Disabled . | . . . Actions | -11 -10 -10 --------- Run | Yrd Mat Min Total 1266 | 502 400 364 Wait 13 | . . 13 Move 1119 | 436 373 310 Hop . | . . . Pick Up 27 | 12 11 4 Fast Attach . | . . . Attach 10 | 4 3 3 Detach . | . . . Swap 8 | 2 3 3 Drop 11 | 2 6 3 Fire . | . . . Melee 31 | . 3 28 Ram 1 | . 1 . Kick 46 | 46 . . Crush . | . . . Escape Stasis . | . . . Rewire . | . . . Trap . | . . . Miscellaneous . | . . . Route ------- -11/Scrapyard -10/Materials -10/Mines (discovered 3 exits: [*Mat x2] / [*Sub]) History --------- Turn | Location | Event 7 | -11/Scrapyard | Discovered new exit (range 16) 590 | -11/Scrapyard | Entered Materials 591 | -10/Materials | Build established: Mutant 819 | -10/Materials | Discovered new exit (range 14) 1032 | -10/Materials | Entered Mines 1053 | -10/Mines | Learned Materials emergency access door positions 1059 | -10/Mines | Met a Derelict bent on vengeance 1132 | -10/Mines | Discovered new exit (range 11) 1358 | -10/Mines | Discovered new exit (range 8) 1414 | -10/Mines | Discovered new exit (range 14) 1561 | -10/Mines | Found a damaged Exp. Sensor Array with a note attached 1565 | -10/Mines | Found Prototype Device 1566 | -10/Mines | Identified Exp. Sensor Array 1658 | -10/Mines | Assembled infested the area 1663 | -10/Mines | Assisted by a Guerilla fighting off Assembled 1700 | -10/Mines | Core integrity fell below 50% 1707 | -10/Mines | Destroyed by D-53 Grenadier with Mini Grenade Launcher Last Messages --------------- coming from, and they're closing on this area, come on!" 01680_ D-53 Grenadier unfolds itself. 01682_ HV Slug penetrates Wall. 01683_ The unstable cave ceiling collapses. 01697_ Aluminum Leg destroyed. 01697_ as-81346 destroyed. 01697_ Dropped Aluminum Leg. 01698_ The unstable cave ceiling collapses. 01698_ Seismic Detector destroyed. 01699_ The unstable cave ceiling collapses. 01701_ Com. Wheel destroyed. 01703_ Imp. Ion Engine destroyed. 01704_ The unstable cave ceiling collapses. 01705_ Hvy. Hammer destroyed. 01706_ D-53 Grenadier suffers critical hit (Smash). 01706_ Destroyed Launcher Guidance Computer. 01706_ D-53 Grenadier system corrupted by crushing effect. Map ----- +----------------------------------------------------+ | ?????????????????????????????????????????????????? | | ?????????????????????????????????????????????????? | | ?????????????????????????????????????????????????? | | ?????????????????????????????????????????????????? | | ???????????????????????????????? ????????????????? | | ???????????????????????????????? #???????????????? | | ???????????????????????????????? #???????????????? | | ???????????????????????????????# #???????????????? | | ?????????????????????????????## ##??????????????? | | ????????????????????????????## ##?????????????? | | ???????????????????????????## #?????????????? | | ???????????????????????????# #?????????????? | | ???????????????????????????# a ##???????????## | | ??????????????????????????## ###?????????# | | ??????????????????????????# ##????????# | | ?????????????????????????# #????????# | | ?????????????????????##### #?????????# | | ????????????????????## #???????????# | | ???????????????????## ##???????????## | | ??????????????????## #????????????? | | ??????????????????# #????????????? | | ??????????????????# #??????###???? | | ??#